bitfinex-derivatives/quotes_ETHF0:USTF0_20251024
["timestamp","ask_amount","ask_price","bid_price","bid_amount"]
[1761308710002,0.2135,3950.8,3950.7,0.90751053]
[1761308710208,0.774,3950.8,3950.7,9.032]
[1761308710608,0.3435,3950.7,3950.6,0.90751053]
[1761308710913,0.774,3950.7,3950.6,9.48753]
[1761308711606,0.88602,3950.7,3950.6,9.032]
[1761308711808,0.1355,3950.5,3950.1,0.90751053]
[1761308712107,0.349,3950.5,3950.3,0.45556]
[1761308712303,0.3435,3950.4,3950.3,0.45556]
[1761308712508,0.79905,3950.4,3950.2,9.48757]
[1761308712716,0.3435,3950.3,3950.2,9.48757]
[1761308714511,0.3435,3950.3,3950.2,9.032]
[1761308714712,0.557,3950.3,3950.2,9.48757]
[1761308715817,0.3435,3950.3,3950.2,9.48757]
[1761308718011,0.1355,3951.0,3950.4,1.13888]
[1761308718216,0.349,3951.0,3950.3,0.90751053]
[1761308718415,0.349,3951.0,3950.2,9.032]
[1761308718416,0.1355,3950.5,3950.4,0.45555]
[1761308718612,0.479,3950.5,3950.4,0.45555]
[1761308719117,0.479,3950.5,3950.2,1.36308053]
[1761308719118,0.774,3950.3,3950.2,1.36308053]
[1761308719316,0.774,3950.3,3950.2,9.48857]
[1761308722316,0.774,3950.3,3950.2,9.033]
[1761308722523,1.22956,3950.3,3950.2,9.033]
[1761308723214,0.774,3950.3,3950.2,9.48857]
[1761308723413,0.774,3950.3,3950.2,9.033]
[1761308724524,0.774,3950.1,3950.0,0.00214674]
[1761308724710,0.3435,3950.1,3950.0,9.03514674]
[1761308725024,0.557,3950.1,3950.0,9.49074674]
[1761308725220,0.774,3950.1,3950.0,9.49074674]
[1761308725723,0.557,3950.1,3950.0,9.49074674]
[1761308726424,0.774,3950.1,3950.0,9.03514674]
[1761308728733,0.3435,3950.4,3950.0,9.03514674]
[1761308729529,0.5651,3950.3,3950.0,9.03514674]
[1761308729734,0.5651,3950.3,3950.0,9.49073674]
[1761308730027,0.793,3950.1,3950.0,9.49073674]
[1761308730329,0.5651,3950.1,3950.0,9.49073674]
[1761308730829,0.3491,3950.1,3950.0,9.49073674]
[1761308733634,0.128,3949.5,3949.4,0.90751053]
[1761308733827,0.128,3949.5,3948.7,1.81310395]
[1761308733828,0.793,3949.2,3949.1,0.4557]
[1761308734018,0.3491,3949.1,3949.0,8.06351053]
[1761308734223,0.5651,3949.1,3949.0,8.51922053]
[1761308734732,0.56700134,3949.1,3949.0,8.52189359]
[1761308735232,0.56700134,3949.1,3949.0,8.06618359]
[1761308735432,0.79490134,3949.1,3949.0,7.15867306]
[1761308736128,0.79490134,3949.1,3949.0,7.61438306]
[1761308736328,0.79490134,3949.1,3949.0,7.15867306]
[1761308737129,0.79490134,3949.1,3949.0,7.61438306]
[1761308737330,0.35100134,3949.1,3949.0,7.61438306]
[1761308740618,0.35100134,3949.1,3949.0,7.15867306]
[1761308740821,0.79490134,3949.1,3949.0,0.00267306]
[1761308742931,0.35100134,3949.1,3949.0,0.00267306]
[1761308743122,0.79490134,3949.1,3949.0,0.00267306]
[1761308744727,0.56700134,3949.1,3949.0,0.00267306]
[1761308745629,0.79490134,3949.1,3949.0,0.00267306]
[1761308750649,0.35100134,3949.1,3949.0,0.45838306]
[1761308750848,0.56700134,3949.1,3949.0,0.45838306]
[1761308751055,0.79490134,3949.1,3949.0,0.45838306]
[1761308751251,0.79490134,3949.1,3949.0,0.00267306]
[1761308755157,0.216,3948.2,3948.1,0.45581]
[1761308755363,0.4439,3948.2,3948.1,0.45581]
[1761308755763,0.793,3948.2,3948.1,0.45581]
[1761308755959,0.128,3948.0,3947.7,1.10879214]
[1761308756158,0.5651,3947.9,3947.8,0.45585]
[1761308756464,0.793,3947.9,3947.8,0.45585]
[1761308756660,0.3491,3947.9,3947.8,0.45585]
[1761308757659,0.5712,3947.9,3947.8,0.45585]
[1761308758963,0.5644,3947.8,3947.7,9.49075785]
[1761308759163,0.5644,3947.8,3947.7,0.45875785]
[1761308759364,0.5644,3947.8,3947.7,9.48975785]
[1761308759869,0.3423,3947.8,3947.7,9.48975785]
[1761308760868,0.4498,3948.0,3947.9,0.45584]
[1761308761061,0.128,3948.5,3947.7,9.94140838]
[1761308761062,0.128,3948.5,3948.4,0.45578]
[1761308761566,0.4515,3948.5,3948.4,1.36329053]
[1761308761754,0.3218,3948.8,3948.4,1.36329053]
[1761308761958,0.3218,3948.8,3948.7,0.45575]
[1761308762361,0.541,3948.8,3948.7,0.45575]
[1761308762566,0.3218,3948.8,3948.7,0.45575]
[1761308762768,0.541,3948.8,3948.7,0.45575]
[1761308763668,0.541,3948.8,3948.5,9.93851053]
[1761308763669,0.3218,3948.7,3948.6,0.45576]
[1761308764568,0.541,3948.7,3948.6,0.45576]
[1761308764869,0.3218,3948.7,3948.6,0.45576]
[1761308765068,0.128,3949.0,3948.6,0.45576]
[1761308765262,0.3218,3948.9,3948.8,0.45572]
[1761308765766,0.541,3948.9,3948.8,0.45572]
[1761308766068,0.764,3948.9,3948.8,9.48672]
[1761308766568,0.764,3948.9,3948.8,9.48673]
[1761308767368,0.764,3948.9,3948.8,9.48573]
[1761308768662,0.3218,3948.9,3948.8,9.48573]
[1761308768868,0.764,3948.9,3948.8,9.48573]
[1761308769969,0.764,3948.9,3948.8,9.03]
[1761308770366,0.764,3948.9,3948.8,9.48573]
[1761308770566,0.541,3948.9,3948.8,9.48573]
[1761308772063,0.764,3948.9,3948.8,9.48573]
[1761308772463,0.3218,3948.9,3948.8,9.48573]
[1761308772770,0.3218,3948.9,3948.8,10.39324053]
[1761308773168,0.3218,3948.8,3948.7,0.90751053]
[1761308773360,0.128,3949.0,3948.5,0.90751053]
[1761308773361,0.3218,3948.6,3948.5,0.90751053]
[1761308773567,0.764,3948.6,3948.5,9.029]
[1761308773763,0.8937,3948.5,3948.4,1.36329053]
[1761308773968,0.8937,3948.5,3948.4,10.39229053]
[1761308774474,0.8937,3948.5,3948.4,9.93651053]
[1761308774770,0.8937,3948.5,3948.4,0.90751053]
[1761308774972,0.8937,3948.5,3948.4,9.93651053]
[1761308776377,0.8937,3948.5,3948.4,10.39229053]
[1761308776577,0.8937,3948.5,3948.4,9.48478]
[1761308778778,0.8937,3948.5,3948.4,9.48378]
[1761308779878,0.4515,3948.5,3948.4,9.48378]
[1761308780381,0.6707,3948.5,3948.4,9.48378]
[1761308780675,0.5448,3948.4,3948.3,0.90751053]
[1761308780977,0.5448,3948.4,3948.3,10.39130053]
[1761308780978,0.764,3948.4,3948.3,10.39130053]
[1761308781178,0.3218,3948.4,3948.3,10.39130053]
[1761308782578,0.541,3948.4,3948.3,10.39130053]
[1761308783877,0.764,3948.4,3948.3,10.39030053]
[1761308784883,0.764,3948.4,3948.3,9.93451053]
[1761308785079,0.3218,3948.4,3948.3,9.48279]
[1761308785380,0.541,3948.4,3948.3,9.027]
[1761308785682,0.764,3948.4,3948.3,9.48279]
[1761308788480,0.764,3948.4,3948.3,0.45579]
[1761308788788,0.764,3948.4,3948.3,9.48279]
[1761308788789,0.3218,3948.4,3948.3,9.48279]
[1761308788988,0.541,3948.4,3948.3,9.027]
[1761308789287,0.541,3948.4,3948.3,9.48279]
[1761308791592,0.3218,3948.4,3948.3,9.48279]
[1761308792582,0.7504,3948.4,3948.3,9.027]
[1761308792784,0.4286,3948.4,3948.2,0.90751053]
[1761308792980,0.7448,3948.3,3948.2,0.90751053]
[1761308793185,0.3162,3948.2,3947.9,1.36335053]
[1761308793392,0.88,3948.0,3947.9,1.36335053]
[1761308793690,0.88,3948.0,3947.7,2.27002462]
[1761308793993,0.7448,3947.8,3947.7,0.00289785]
[1761308794192,0.7448,3947.8,3947.7,7.59689785]
[1761308794897,0.3162,3947.8,3947.7,8.05275785]
[1761308795087,0.1352,3948.0,3947.9,0.45584]
[1761308795295,0.1352,3948.0,3947.9,1.36593668]
[1761308795485,0.1352,3948.0,3947.9,9.48184]
[1761308795686,0.4514,3948.0,3947.9,9.48184]
[1761308796496,0.3162,3948.3,3948.2,0.4558]
[1761308797397,0.4514,3948.0,3947.9,9.026]
[1761308797595,0.4514,3948.0,3947.9,9.48184]
[1761308798194,0.4514,3948.0,3947.9,10.39193668]
[1761308802196,0.4514,3948.0,3947.9,9.48184]
[1761308802498,0.4514,3948.0,3947.9,10.3921441]
[1761308802704,0.5296,3948.3,3948.2,0.4558]
[1761308802897,0.88,3948.0,3947.9,0.9103041]
[1761308803202,0.5638,3948.0,3947.9,9.025]
[1761308803404,0.5638,3948.0,3947.9,9.48083]
[1761308803603,0.88,3948.0,3947.9,9.025]
[1761308804104,0.88,3948.0,3947.9,9.48084]
[1761308804698,0.88,3948.0,3947.9,9.025]
[1761308807202,1.33583,3948.0,3947.9,9.025]
[1761308808006,1.33583,3948.0,3947.9,9.48084]
[1761308808200,1.33583,3948.0,3947.9,9.025]
[1761308808998,1.33583,3948.0,3947.7,0.00289785]
[1761308809200,1.20065,3947.8,3947.7,0.00289785]
[1761308809405,1.20065,3947.8,3947.7,7.40389785]
[1761308809406,1.29707605,3947.8,3947.7,7.40389785]
[1761308810512,1.29706425,3947.8,3947.7,7.40389785]
[1761308811011,6.29706425,3947.8,3947.7,0.00289785]
[1761308811314,0.1352,3946.5,3946.4,0.45601]
[1761308811514,0.1352,3946.5,3946.4,5.44601]
[1761308811806,0.4514,3946.5,3946.4,5.44601]
[1761308812314,1.336,3946.5,3946.4,0.00263668]
[1761308813707,0.88,3946.5,3946.4,0.00263668]
[1761308814012,0.4514,3946.5,3946.4,0.00263668]
[1761308815211,0.3162,3946.8,3946.4,0.00263668]
[1761308815601,0.45596,3946.9,3946.4,0.00263668]
[1761308815602,0.88,3946.5,3946.4,0.00263668]
[1761308816910,1.33602,3946.5,3946.4,0.00263668]
[1761308821203,0.88,3946.5,3946.4,0.45866668]
[1761308821403,0.88,3946.5,3946.4,0.00263668]
[1761308821604,0.3278,3945.4,3945.3,0.45616]
[1761308821810,0.5504,3945.4,3945.3,0.45616]
[1761308822010,0.7745,3945.4,3945.3,0.45616]
[1761308822619,0.77775844,3945.4,3945.3,9.48310594]
[1761308823022,0.33105844,3945.4,3945.3,9.48310594]
[1761308823322,0.00325844,3945.4,3945.3,9.48310594]
[1761308823611,0.33105844,3945.4,3945.3,9.48310594]
[1761308825517,0.55365844,3945.4,3945.3,0.45810594]
[1761308825720,0.55365844,3945.4,3945.3,9.48310594]
[1761308826222,0.33105844,3945.4,3945.3,9.48310594]
[1761308827216,0.00325844,3945.4,3945.3,9.48310594]
[1761308827422,0.00325844,3945.4,3945.3,0.45810594]
[1761308827716,0.00325844,3945.4,3945.3,14.48310594]
[1761308827921,0.5504,3946.4,3945.3,14.02694594]
[1761308828123,1.13997,3946.9,3945.8,0.45609]
[1761308828124,0.7745,3945.9,3945.8,0.45609]
[1761308828425,0.3278,3945.9,3945.8,0.45609]
[1761308828822,0.5504,3945.9,3945.8,0.45609]
[1761308829123,0.33084489,3945.9,3945.8,9.48109]
[1761308830220,0.00304489,3945.9,3945.8,9.48109]
[1761308830423,0.5504,3945.4,3945.3,0.00194594]
[1761308830720,0.3278,3943.4,3943.2,0.45641]
[1761308831029,0.2241,3943.4,3942.3,1.35961624]
[1761308831219,0.2241,3943.4,3942.5,0.45649]
[1761308831528,0.1376,3943.0,3942.8,0.45646]
[1761308831823,0.14052176,3943.0,3942.8,0.45646]
[1761308832015,0.46832176,3943.0,3942.8,0.45646]
[1761308832215,0.14052176,3943.0,3942.7,0.45647]
[1761308832419,0.3278,3942.9,3942.8,4.035]
[1761308832627,0.3278,3942.9,3942.7,0.45647]
[1761308832819,0.46832176,3943.0,3942.8,9.49346]
[1761308833014,0.14052176,3943.0,3942.8,9.49346]
[1761308833215,0.2226,3942.9,3942.5,0.00279642]
[1761308833527,0.3278,3942.7,3942.6,9.036]
[1761308834115,0.5504,3942.7,3942.5,0.00279642]
[1761308834321,0.5504,3942.6,3942.5,0.00279642]
[1761308834625,0.14052176,3943.0,3942.5,1.47779642]
[1761308834833,0.3278,3942.9,3942.8,0.45646]
[1761308835325,0.00292176,3943.0,3942.8,0.45646]
[1761308835830,0.00292176,3943.0,3942.8,5.45646]
[1761308836029,0.00292176,3943.0,3942.9,9.038]
[1761308836232,0.33072176,3943.0,3942.9,9.038]
[1761308836723,0.00292176,3943.0,3942.9,9.038]
[1761308837430,0.3278,3943.4,3942.9,9.038]
[1761308837624,0.3278,3943.4,3943.3,0.45641]
[1761308837824,0.3278,3943.4,3942.9,9.038]
[1761308838028,0.3278,3943.4,3943.2,0.45641]
[1761308838328,0.00198808,3943.4,3943.3,0.4564]
[1761308838531,0.00198808,3943.4,3943.3,9.4984]
[1761308839421,0.00198808,3943.4,3943.3,14.4984]
[1761308839624,0.3278,3944.4,3944.3,0.45629]
[1761308839829,0.3278,3944.4,3944.3,9.49729]
[1761308840633,0.33083761,3944.4,3944.3,0.45629]
[1761308840828,0.55343761,3944.4,3944.3,9.50129]
[1761308841033,0.77753761,3944.4,3944.3,9.50129]
[1761308841336,0.77753761,3944.4,3944.3,9.045]
[1761308841531,0.3278,3944.3,3944.2,0.4563]
[1761308841735,0.5504,3944.3,3944.2,9.044]
[1761308841940,0.7745,3944.3,3944.2,9.044]
[1761308842432,0.3278,3944.2,3943.2,1.35961624]
[1761308842733,0.00303761,3944.4,3944.3,0.45629]
[1761308842934,0.00303761,3944.4,3944.3,9.49929]
[1761308843136,0.33083761,3944.4,3944.3,9.49929]
[1761308843537,0.00303761,3944.4,3944.3,9.49929]
[1761308844231,0.33083761,3944.4,3944.3,9.49929]
[1761308844741,0.00303761,3944.4,3944.3,9.49929]
[1761308845828,0.00303761,3944.4,3944.3,14.49929]
[1761308846143,0.3278,3945.2,3945.1,0.4562]
[1761308846330,0.5504,3945.2,3945.1,9.5132]
[1761308847038,0.55352563,3945.2,3945.1,9.5132]
[1761308847533,0.00312563,3945.2,3945.1,14.5132]
[1761308847737,0.3278,3946.4,3946.0,1.14023]
[1761308847931,0.4654,3946.5,3946.3,0.45606]
[1761308848133,0.3278,3946.8,3946.7,0.45601]
[1761308848336,0.5504,3946.8,3946.7,9.52901]
[1761308848837,0.77742428,3946.8,3946.7,9.53213349]
[1761308849442,0.77742428,3946.8,3946.7,0.00312349]
[1761308849634,0.77742428,3946.8,3946.7,2.04412349]
[1761308850938,0.55332428,3946.8,3946.7,2.04412349]
[1761308852839,0.55332428,3946.8,3946.7,2.50013349]
[1761308853240,0.77782428,3946.8,3946.7,2.50013349]
[1761308853434,0.55522428,3946.8,3946.7,2.50013349]
[1761308853742,0.1376,3948.0,3946.7,2.50013349]
[1761308853743,0.27859521,3949.4,3948.8,0.3168]
[1761308853935,0.90297246,3951.4,3949.3,0.3168]
[1761308854131,0.45543,3951.8,3949.8,0.1156]
[1761308854332,0.1352,3952.2,3950.5,0.3168]
[1761308854537,0.13711935,3951.5,3950.7,0.45554]
[1761308854738,0.13711935,3951.5,3950.7,0.3168]
[1761308854944,0.13711935,3951.5,3950.9,0.45552]
[1761308855339,0.13711935,3951.5,3951.0,0.45551]
[1761308855647,0.3282,3951.4,3951.0,0.45551]
[1761308856938,0.3282,3951.4,3950.8,0.45553]
[1761308857138,0.3282,3951.4,3950.9,0.45552]
[1761308858745,0.3282,3951.4,3951.0,0.3168]
[1761308859053,0.3282,3951.4,3951.0,0.45551]
[1761308859748,0.3282,3951.4,3951.1,0.4555]
[1761308860847,0.3282,3951.4,3951.0,0.45551]
[1761308861637,0.552,3951.1,3951.0,0.90781]
[1761308862046,0.13711935,3951.5,3951.0,0.90781]
[1761308862047,0.00191935,3951.5,3951.0,0.90781]
[1761308862251,0.3282,3952.6,3951.8,0.4523]
[1761308862553,0.552,3951.9,3951.8,1.22452]
[1761308862847,0.3282,3951.9,3951.8,1.22452]
[1761308863039,0.1352,3952.5,3951.8,1.22452]
[1761308863040,0.3282,3952.4,3951.9,0.45541]
[1761308863240,0.2238,3952.1,3952.0,0.6782]
[1761308863446,0.552,3952.1,3952.0,0.4523]
[1761308864253,0.3282,3951.9,3951.3,0.3168]
[1761308864554,0.552,3951.9,3951.8,0.4523]
[1761308864855,0.552,3951.9,3951.8,0.7691]
[1761308866748,0.552,3951.9,3951.8,0.4523]
[1761308868856,0.7765,3951.9,3951.8,0.90773]
[1761308869058,0.3282,3951.8,3951.1,0.2228]
[1761308869246,0.4483,3951.3,3951.2,0.90779]
[1761308869948,0.7765,3951.3,3951.2,0.90779]
[1761308870152,0.3282,3951.6,3951.5,0.67825]
[1761308870352,0.3282,3951.6,3951.5,1.22455]
[1761308870553,0.552,3951.9,3951.8,0.2228]
[1761308870858,0.7765,3951.6,3951.5,0.45546]
[1761308871361,0.7765,3951.6,3951.5,0.67826]
[1761308871555,0.3282,3951.6,3951.5,1.22456]
[1761308873562,0.3282,3951.9,3951.8,0.67822]
[1761308873752,0.552,3951.9,3951.8,0.67822]
[1761308874263,0.7765,3951.9,3951.8,0.67822]
[1761308874462,0.7765,3951.9,3951.8,0.90772]
[1761308875363,0.7765,3952.3,3952.2,0.2228]
[1761308875564,0.552,3952.3,3952.2,0.90768]
[1761308875859,0.552,3952.3,3952.2,1.22448]
[1761308876363,0.3282,3952.3,3952.2,1.22448]
[1761308876863,0.552,3952.3,3952.2,1.22448]
[1761308878358,0.336,3952.2,3951.3,1.47822]
[1761308878558,0.7741,3951.8,3951.7,0.45544]
[1761308878765,0.7741,3951.7,3951.6,0.45545]
[1761308878962,0.7741,3951.7,3951.6,0.68695]
[1761308880167,0.7741,3951.7,3951.6,0.89895]
[1761308880168,0.5513,3951.7,3951.6,0.89895]
[1761308881074,0.7744,3951.7,3951.6,0.89895]
[1761308882265,0.7744,3951.7,3951.6,0.4435]
[1761308882965,0.7744,3951.7,3951.6,0.89895]
[1761308884364,0.90814055,3952.2,3951.7,0.45544]
[1761308884565,0.08246997,3952.1,3951.7,0.45544]
[1761308884863,0.08246997,3952.0,3951.5,0.45546]
[1761308885068,0.08246997,3951.9,3951.1,0.68002257]
[1761308885273,0.90814055,3952.2,3951.6,0.45544]
[1761308885573,0.08246286,3952.1,3951.6,0.45544]
[1761308885775,0.08246286,3952.0,3951.2,0.4555]
[1761308885969,0.08246286,3951.9,3951.2,0.4555]
[1761308886171,0.90814055,3952.2,3951.2,0.4555]
[1761308886172,0.90814055,3952.1,3951.3,1.13872]
[1761308886375,0.08247618,3952.0,3951.7,0.45543]
[1761308886678,0.08247618,3951.9,3951.2,0.4555]
[1761308886866,0.90814055,3952.1,3951.6,0.45544]
[1761308887066,0.08247618,3952.0,3951.6,0.45544]
[1761308887269,0.08247618,3951.9,3951.6,0.45544]
[1761308887467,0.08247618,3951.8,3951.6,0.45544]
[1761308887668,0.90814055,3952.1,3951.6,0.45544]
[1761308887876,0.08249131,3952.0,3951.6,0.45544]
[1761308888063,0.08249131,3951.9,3951.6,0.45544]
[1761308888265,0.08249131,3951.9,3951.2,0.4555]
[1761308888266,0.08249131,3951.8,3951.7,0.45544]
[1761308888676,0.08249131,3952.0,3951.7,0.45544]
[1761308889776,0.08249131,3951.9,3951.7,0.45544]
[1761308889965,0.08249131,3951.8,3951.7,0.45544]
[1761308890170,0.90814055,3952.3,3951.8,0.45543]
[1761308890370,0.0825543,3952.2,3951.8,0.45543]
[1761308890677,0.0825543,3952.1,3951.8,0.45543]
[1761308890878,0.0825543,3952.0,3951.8,0.45543]
[1761308891079,4.3e-06,3951.9,3951.8,0.45543]
[1761308891275,1.3398987,3952.9,3952.1,1.1385]
[1761308891476,1.3398987,3953.8,3953.0,0.45529]
[1761308891673,1.3398987,3953.7,3953.0,0.45529]
[1761308891976,1.3398987,3954.0,3953.0,0.68100853]
[1761308892282,0.4552,3953.8,3953.3,0.45525]
[1761308892585,1.3427475,3954.0,3953.3,0.00300162]
[1761308892781,0.45521,3953.7,3953.3,0.00300162]
[1761308893172,0.45521,3953.7,3953.4,0.45524]
[1761308893367,0.4552,3953.8,3953.5,0.45523]
[1761308893573,1.13803,3953.8,3952.7,0.68100853]
[1761308893880,0.45532,3952.8,3952.3,0.45537]
[1761308894069,0.45531,3952.9,3952.3,0.45537]
[1761308894266,1.82318691,3953.8,3952.4,0.45536]
[1761308894267,0.45528,3953.1,3952.4,0.45536]
[1761308894476,0.4553,3953.0,3952.5,0.45535]
[1761308894678,0.4553,3953.0,3952.6,0.45534]
[1761308894983,0.4553,3953.0,3952.6,0.45731951]
[1761308895181,0.45531,3952.9,3952.6,0.00197951]
[1761308895480,0.45529,3953.1,3952.7,0.45533]
[1761308895679,0.45529,3953.0,3952.7,0.45533]
[1761308896378,0.45531,3952.9,3952.7,0.45533]
[1761308896881,0.45532,3952.8,3952.6,0.00197951]
[1761308897381,1.3398987,3953.5,3952.7,0.45533]
[1761308897583,1.3398987,3953.5,3952.8,0.45531]
[1761308897779,1.3398987,3953.6,3952.8,0.45531]
[1761308897979,0.45529,3953.1,3952.8,0.45531]
[1761308898181,1.3398987,3953.6,3952.6,0.00197951]
[1761308898480,0.45533,3952.8,3952.6,0.00197951]
[1761308900289,1.3398987,3953.4,3952.6,0.45731951]
[1761308900584,1.7951387,3953.5,3952.6,0.45731951]
[1761308900786,1.7951387,3953.5,3952.7,0.45533]
[1761308901083,1.3398987,3953.5,3952.6,0.45731951]
[1761308901886,1.3398987,3953.5,3952.6,0.00197951]
[1761308902385,1.3398987,3953.4,3952.6,0.45731951]
[1761308902984,1.82318691,3953.9,3952.7,0.45533]
[1761308902985,1.3398987,3953.5,3952.7,0.45533]
[1761308903179,0.08199747,3953.4,3952.6,0.00197951]
[1761308903375,0.08199747,3953.3,3952.6,0.45731951]
[1761308903579,1.3398987,3953.5,3952.6,0.45731951]
[1761308903580,0.08199747,3953.2,3952.6,0.45731951]
[1761308903876,0.08199747,3953.1,3952.6,0.45731951]
[1761308904179,1.82318691,3953.9,3952.6,0.00197951]
[1761308904382,2.82897904,3955.8,3953.0,11.38227]
[1761308904679,4.54602318,3960.6,3955.6,1.35961624]
[1761308904888,4.54602318,3960.6,3956.6,0.45487]
[1761308905073,4.54602318,3960.6,3957.7,0.903746]
[1761308905074,0.20615051,3958.8,3957.7,0.903746]
[1761308905274,0.47995167,3957.8,3957.7,1.05020207]
[1761308905474,0.02521167,3957.8,3957.7,1.05020207]
[1761308905688,0.45475,3957.7,3957.5,0.67504875]
[1761308905881,0.45482,3957.1,3957.0,0.79179646]
[1761308906088,0.45488,3956.7,3956.5,1.35961624]
[1761308906286,0.45488,3956.7,3956.0,1.35961624]
[1761308906586,0.4549,3956.5,3956.0,1.35961624]
[1761308906785,0.45494,3956.2,3956.0,0.00187932]
[1761308907176,0.45499,3955.7,3954.9,1.35961624]
[1761308907381,0.45499,3955.7,3954.8,1.81469624]
[1761308907586,0.45499,3955.7,3955.0,0.45506]
[1761308907779,0.45497,3955.9,3955.1,0.45505]
[1761308908088,1.13708,3957.1,3955.0,1.35961624]
[1761308908281,1.13708,3957.1,3955.0,0.00276337]
[1761308908481,0.45491,3956.4,3955.6,0.455]
[1761308908681,0.45491,3956.4,3955.7,0.45498]
[1761308909083,0.45488,3956.6,3955.8,0.45497]
[1761308909277,0.45488,3956.6,3956.0,0.45494]
[1761308909785,21.85812167,3957.8,3956.1,0.45493]
[1761308909786,1.1369,3957.7,3956.1,0.45493]
[1761308909986,0.45486,3956.9,3955.5,1.13753]
[1761308910190,0.45486,3956.9,3956.3,0.45491]
[1761308910386,1.13693,3957.6,3956.4,0.45489]
[1761308910686,0.45481,3957.3,3955.9,1.1374]
[1761308910885,0.45478,3957.5,3956.0,1.13736]
[1761308911194,0.45477,3957.6,3955.6,1.35961624]
[1761308911492,0.45477,3957.6,3957.0,0.45483]
[1761308911791,0.02521167,3957.8,3957.4,0.45478]
[1761308912382,0.02521167,3957.8,3956.0,11.37378]
[1761308912688,0.02521167,3957.8,3956.5,1.13723]
[1761308912878,0.02521167,3957.8,3957.0,0.45483]
[1761308913188,0.02521167,3957.8,3956.7,0.45486]
[1761308913381,0.02521167,3957.8,3956.9,0.45484]
[1761308913578,0.02521167,3957.8,3957.1,0.45482]
[1761308913885,0.02521167,3957.8,3956.4,1.13726]
[1761308914081,0.02521167,3957.8,3956.5,1.13722]
[1761308914386,0.02521167,3957.8,3957.4,0.45479]
[1761308915084,0.02521167,3957.8,3957.6,0.45476]
[1761308915085,0.02040791,3957.8,3957.6,0.45476]
[1761308917393,2.533,3962.4,3958.5,0.45465]
[1761308917590,0.022,3962.8,3957.2,1.35961624]
[1761308917788,0.22781724,3962.8,3958.6,14.65425488]
[1761308917997,0.22781724,3962.8,3958.9,1.35961624]
[1761308918193,0.22781724,3962.8,3957.8,9.367]
[1761308918392,0.22781724,3962.8,3957.8,0.00206557]
[1761308918393,0.23017135,3962.8,3957.8,0.00206557]
[1761308918608,5.14673219,3962.7,3957.8,0.00206557]
[1761308918893,9.322,3962.6,3957.8,0.00206557]
[1761308919589,2.529,3962.4,3957.8,0.00206557]
[1761308919796,2.529,3962.4,3957.8,0.45680557]
[1761308920188,2.529,3962.2,3957.8,0.45680557]
[1761308920587,2.529,3962.2,3958.0,0.45472]
[1761308920782,2.529,3962.2,3957.8,0.45680557]
[1761308921484,2.529,3962.1,3957.8,0.00206557]
[1761308921794,2.529,3961.9,3958.1,0.4547]
[1761308922097,2.529,3961.9,3957.8,0.00206557]
[1761308923186,2.7822,3960.8,3957.8,0.00206557]
[1761308923794,2.529,3960.8,3957.8,0.00206557]
[1761308923997,0.2532,3960.7,3957.8,0.00206557]
[1761308924695,2.529,3961.5,3957.8,0.00206557]
[1761308924991,0.2532,3961.2,3957.8,0.00206557]
[1761308925294,2.529,3960.8,3957.8,0.00206557]
[1761308925996,0.2532,3960.5,3957.8,0.00206557]
[1761308926294,2.7822,3960.1,3957.8,0.00206557]
[1761308926594,6.2,3961.8,3957.8,0.00206557]
[1761308926800,0.1,3960.8,3957.8,0.00206557]
[1761308926998,0.2532,3960.7,3956.2,0.45492]
[1761308927197,0.2532,3960.7,3956.3,1.52584314]
[1761308927402,0.2532,3960.7,3956.4,0.74007972]
[1761308927594,0.1,3960.8,3956.5,0.74007972]
[1761308927794,0.1,3960.8,3955.7,1.35961624]
[1761308927994,0.1,3960.8,3956.3,0.45491]
[1761308928402,5.629,3960.7,3956.5,0.45489]
[1761308928596,5.629,3960.7,3955.7,1.14001272]
[1761308928800,5.629,3960.7,3956.3,0.45491]
[1761308928994,6.2,3960.6,3956.4,0.74149458]
[1761308929197,6.733,3960.5,3955.7,0.00255272]
[1761308929393,6.733,3960.5,3955.8,0.74239003]
[1761308929594,6.733,3960.3,3955.9,0.74265171]
[1761308929900,6.733,3960.3,3956.0,0.74265171]
[1761308930104,6.733,3960.1,3955.7,0.00255272]
[1761308930296,4.204,3959.9,3955.8,0.74268702]
[1761308930497,4.20721388,3959.9,3955.9,1.07499862]
[1761308930695,9.352,3959.8,3956.0,0.74268702]
[1761308930895,9.352,3959.8,3956.1,0.74268702]
[1761308931103,9.352,3959.8,3956.2,0.74268702]
[1761308931305,9.352,3959.8,3956.3,0.74268702]
[1761308931506,0.00321388,3959.9,3956.4,0.74268702]
[1761308931699,9.348,3959.8,3956.5,0.74422992]
[1761308931896,2.465,3959.7,3955.7,1.36216896]
[1761308932202,2.529,3959.6,3955.8,1.07690621]
[1761308932405,2.529,3959.6,3955.9,1.07690621]
[1761308932704,2.529,3959.6,3956.0,1.07690621]
[1761308932913,6.733,3959.6,3956.1,0.74423539]
[1761308933206,6.733,3959.4,3956.2,1.07791416]
[1761308933499,6.733,3959.2,3955.7,0.00255272]
[1761308933703,6.733,3959.2,3955.8,0.74463112]
[1761308933908,6.733,3959.0,3955.7,0.00255272]
[1761308934108,6.733,3959.0,3955.8,0.74463214]
[1761308934313,6.733,3958.8,3955.7,0.00255272]
[1761308934606,2.529,3957.9,3955.8,0.73870748]
[1761308934904,6.2,3958.2,3955.7,0.00255272]
[1761308934905,2.529,3957.7,3955.7,0.00255272]
[1761308936002,2.529,3957.5,3954.7,0.89965972]
[1761308936194,2.529,3957.3,3954.8,0.73550084]
[1761308936399,2.529,3957.3,3954.9,0.73550084]
[1761308936603,2.529,3957.3,3955.0,0.73550084]
[1761308936901,2.529,3957.3,3955.1,0.73550084]
[1761308936902,2.73268897,3957.3,3955.1,0.73550084]